bitfinex/quotes_ETHUSD_20250620
["timestamp","ask_amount","ask_price","bid_price","bid_amount"]
[1750457876420,17.05745604,2408.0,2407.9,4.15299638]
[1750457876787,16.734747,2407.8,2407.7,4.15334136]
[1750457876987,25.590747,2407.8,2407.7,4.15334136]
[1750457877232,25.97409758,2407.8,2407.7,4.15334136]
[1750457877641,25.590747,2407.8,2407.7,4.15334136]
[1750457877838,25.97412414,2407.8,2407.7,4.15334136]
[1750457878722,25.9134461,2407.8,2407.7,4.15334136]
[1750457880397,25.9741461,2407.8,2407.7,4.15334136]
[1750457880596,6.734747,2407.7,2407.6,4.15337109]
[1750457880819,7.1181461,2407.7,2407.6,4.15337109]
[1750457881392,7.11807285,2407.7,2407.6,4.15337109]
[1750457881625,7.05737231,2407.7,2407.6,4.15337109]
[1750457881829,7.05737295,2407.7,2407.6,4.15337109]
[1750457882028,7.11547022,2407.7,2407.6,4.15337109]
[1750457882230,7.477747,2407.6,2407.5,4.15360991]
[1750457882434,14.03737022,2407.6,2407.5,4.15360991]
[1750457883405,14.09547022,2407.6,2407.5,4.15360991]
[1750457883997,13.712147,2407.6,2407.5,4.15360991]
[1750457884197,14.0954584,2407.6,2407.5,4.15360991]
[1750457884735,14.47826615,2407.6,2407.5,4.15360991]
[1750457884897,14.42016794,2407.6,2407.5,4.15360991]
[1750457885299,14.41916794,2407.6,2407.5,4.15360991]
[1750457885500,14.41915987,2407.6,2407.5,4.15360991]
[1750457885813,14.0363584,2407.6,2407.5,4.15360991]
[1750457886429,13.653047,2407.6,2407.5,4.15360991]
[1750457886737,16.06833842,2407.6,2407.5,4.15360991]
[1750457886921,16.06834611,2407.6,2407.5,4.15360991]
[1750457887326,16.06834528,2407.6,2407.5,4.15360991]
[1750457887634,24.41910944,2407.6,2407.5,4.15360991]
[1750457887820,24.41910787,2407.6,2407.5,4.15360991]
[1750457888152,24.03635822,2407.6,2407.5,4.15360991]
[1750457888543,24.03630914,2407.6,2407.5,4.15360991]
[1750457890447,24.03628127,2407.6,2407.5,4.15360991]
[1750457890621,24.03628205,2407.6,2407.5,4.15360991]
[1750457891619,24.03630349,2407.6,2407.5,4.15360991]
[1750457891831,24.03630312,2407.6,2407.5,4.15360991]
[1750457892041,24.03630312,2407.6,2407.4,4.1538584]
[1750457892042,24.41934656,2407.6,2407.2,0.8303]
[1750457892242,17.1153985,2407.5,2407.4,4.15385893]
[1750457892542,16.732147,2407.5,2407.4,4.15385893]
[1750457892840,17.11535502,2407.5,2407.4,4.15385893]
[1750457893018,17.11535916,2407.5,2407.4,4.15385893]
[1750457893461,17.05725916,2407.5,2407.4,4.15385893]
[1750457893740,16.674047,2407.5,2407.4,4.15385893]
[1750457894132,17.05732,2407.5,2407.4,4.15385893]
[1750457894441,17.05737478,2407.5,2407.4,4.15385893]
[1750457894609,16.674047,2407.5,2407.4,4.15385893]
[1750457894810,17.05737526,2407.5,2407.4,4.15385893]
[1750457895006,17.05737529,2407.5,2407.4,4.15385893]
[1750457895459,17.05758489,2407.5,2407.4,4.15385893]
[1750457896249,17.05758464,2407.5,2407.4,4.15385893]
[1750457896424,17.05772333,2407.5,2407.4,4.15385893]
[1750457897006,17.44134513,2407.5,2407.4,4.15385893]
[1750457897251,17.44134427,2407.5,2407.4,4.15385893]
[1750457897412,19.49944427,2407.5,2407.4,4.15385893]
[1750457897611,19.49971836,2407.5,2407.4,4.15385893]
[1750457897833,17.44161836,2407.5,2407.4,4.15385893]
[1750457898346,17.44172499,2407.5,2407.4,4.15385893]
[1750457898748,17.05788354,2407.5,2407.4,4.15385893]
[1750457898933,17.44172442,2407.5,2407.4,4.15385893]
[1750457900148,17.44166754,2407.5,2407.4,4.15385893]
[1750457900351,17.44166764,2407.5,2407.4,4.15385893]
[1750457901043,17.49976764,2407.5,2407.4,4.15385893]
[1750457901247,17.49976971,2407.5,2407.4,4.15385893]
[1750457902423,0.831,2407.4,2407.3,4.15403148]
[1750457902627,32.84629277,2407.4,2407.3,4.15403148]
[1750457902841,17.224047,2407.3,2406.8,0.8292]
[1750457903038,26.89987702,2407.2,2407.1,4.15425522]
[1750457903346,37.51688652,2407.2,2407.1,4.15425522]
[1750457903646,37.51714924,2407.2,2407.1,4.15425522]
[1750457903809,36.90261665,2407.2,2407.1,4.15425522]
[1750457904014,37.51766291,2407.2,2407.1,4.15425522]
[1750457904242,37.51766784,2407.2,2407.1,4.15425522]
[1750457904755,37.51727036,2407.2,2407.1,4.15425522]
[1750457904966,29.53446633,2407.2,2407.1,4.15425522]
[1750457905167,29.9183942,2407.2,2407.1,4.15425522]
[1750457905462,29.91839457,2407.2,2407.1,4.15425522]
[1750457905959,29.53485522,2407.2,2407.1,4.15425522]
[1750457906268,29.91917164,2407.2,2407.1,4.15425522]
[1750457906565,29.91940332,2407.2,2407.1,4.15425522]
[1750457906763,10.0581,2406.8,2406.7,4.1550671]
[1750457907065,24.47527344,2406.8,2406.7,4.1550671]
[1750457907539,24.41717344,2406.8,2406.7,4.1550671]
[1750457907743,16.674047,2406.7,2406.6,4.15517195]
[1750457907967,26.51668632,2406.7,2406.6,4.15517195]
[1750457908372,26.51669588,2406.7,2406.6,4.15517195]
[1750457908532,26.57481251,2406.7,2406.6,4.15517195]
[1750457908860,26.57481444,2406.7,2406.6,4.15517195]
[1750457909364,29.00183274,2406.7,2406.6,4.15517195]
[1750457909571,26.34348615,2406.7,2406.6,4.15517195]
[1750457910065,26.34348117,2406.7,2406.6,4.15517195]
[1750457910761,26.343474,2406.7,2406.6,4.15517195]
[1750457911083,26.34347293,2406.7,2406.6,4.15517195]
[1750457911368,37.29065001,2406.7,2406.6,4.15523975]
[1750457911871,26.34287242,2406.7,2406.6,4.15523975]
[1750457912034,26.34287201,2406.7,2406.6,4.15523975]
[1750457912234,26.342873,2406.7,2406.6,4.15523975]
[1750457912440,26.34286782,2406.7,2406.6,4.15523975]
[1750457912774,7.44076782,2406.7,2406.6,5.75500393]
[1750457912936,6.674047,2406.8,2406.7,4.1550671]
[1750457913136,13.648047,2407.1,2407.0,4.21204923]
[1750457913367,7.44080822,2407.1,2407.0,4.98074923]
[1750457913599,7.44080822,2407.1,2407.0,4.92324923]
[1750457913733,17.44080822,2407.1,2407.0,4.15454923]
[1750457913939,17.50270822,2407.1,2407.0,4.15454923]
[1750457914353,7.50270822,2407.1,2407.0,4.15454923]
[1750457914673,19.91614917,2407.1,2407.0,4.15454923]
[1750457915277,20.46622226,2407.1,2407.0,4.15454923]
[1750457915873,20.46622424,2407.1,2407.0,4.15454923]
[1750457916271,20.46622938,2407.1,2407.0,4.15454923]
[1750457916673,26.28495856,2407.1,2407.0,4.15454923]
[1750457917174,26.34685856,2407.1,2407.0,4.15454923]
[1750457917875,24.41395856,2407.1,2407.0,4.15454923]
[1750457918075,24.41397566,2407.1,2407.0,4.15454923]
[1750457918696,16.674047,2407.1,2407.0,5.04254923]
[1750457919354,16.674047,2407.1,2407.0,5.96227221]
[1750457920078,6.674047,2407.1,2407.0,5.96227221]
[1750457923066,6.674047,2407.1,2407.0,5.90477221]
[1750457923267,6.674047,2407.1,2407.0,5.96227221]
[1750457925007,6.674047,2407.1,2407.0,5.90477221]
[1750457925686,7.05763343,2407.1,2407.0,5.90477221]
[1750457925886,6.674047,2407.1,2407.0,5.90477221]
[1750457926907,6.674047,2407.1,2407.0,5.96227221]
[1750457927910,7.05773489,2407.1,2407.0,5.96227221]
[1750457928084,7.05773452,2407.1,2407.0,5.96227221]
[1750457928286,7.05773452,2407.1,2407.0,5.90477221]
[1750457928499,7.4414224,2407.1,2407.0,4.98504923]
[1750457928698,7.4414224,2407.1,2407.0,4.15454923]
[1750457928919,7.44142396,2407.1,2407.0,4.15454923]
[1750457929524,7.44153474,2407.1,2407.0,4.15454923]
[1750457929689,7.44153474,2407.1,2407.0,4.21204923]
[1750457930378,7.44160094,2407.1,2407.0,4.21204923]
[1750457931911,7.4417241,2407.1,2407.0,4.21204923]
[1750457932709,7.44190658,2407.1,2407.0,4.21204923]
[1750457933079,7.44191496,2407.1,2407.0,4.21204923]
[1750457933476,7.05798173,2407.1,2407.0,4.21204923]
[1750457933684,7.44193331,2407.1,2407.0,4.21204923]
[1750457933890,7.44193249,2407.1,2407.0,4.21204923]
[1750457935211,7.4418614,2407.1,2407.0,4.21204923]
[1750457935721,7.44189264,2407.1,2407.0,4.21204923]
[1750457936118,7.44189264,2407.1,2407.0,4.15454923]
[1750457936321,7.44189273,2407.1,2407.0,4.15454923]
[1750457936689,7.44189273,2407.1,2407.0,4.21204923]
[1750457936989,7.44190287,2407.1,2407.0,4.21204923]
[1750457937219,7.44190624,2407.1,2407.0,4.21204923]
[1750457937430,7.05799904,2407.1,2407.0,4.21204923]
[1750457937992,6.674047,2407.1,2407.0,4.21204923]
[1750457938416,6.674047,2407.3,2407.2,4.15420405]
[1750457938742,24.4089962,2407.3,2407.2,4.15420405]
[1750457938944,6.674047,2407.3,2407.2,6.33060189]
[1750457939110,6.674047,2407.6,2407.5,4.21118639]
[1750457939310,7.44264796,2407.6,2407.5,5.03648639]
[1750457939910,7.05834748,2407.6,2407.5,4.97898639]
[1750457940245,14.02451753,2407.6,2407.5,4.15368639]
[1750457940413,24.38972004,2407.6,2407.5,4.15368639]
[1750457940611,24.38974349,2407.6,2407.5,4.15368639]
[1750457941347,22.0709622,2407.6,2407.5,4.15368639]
[1750457941850,22.0699622,2407.6,2407.5,4.15368639]
[1750457942511,22.07022335,2407.6,2407.5,4.15368639]
[1750457942845,22.30131788,2407.6,2407.5,4.15368639]
[1750457943148,22.30132511,2407.6,2407.5,4.15368639]
[1750457943442,22.30128425,2407.6,2407.5,4.15368639]
[1750457944337,24.80195184,2407.6,2407.5,4.15368639]
[1750457944539,24.8019454,2407.6,2407.5,4.15368639]
[1750457945348,24.80181494,2407.6,2407.5,4.15368639]
[1750457945950,24.41714308,2407.6,2407.5,4.15368639]
[1750457946132,24.80181689,2407.6,2407.5,4.15368639]
[1750457946320,24.8018149,2407.6,2407.5,4.15368639]
[1750457946526,24.80192145,2407.6,2407.5,4.15368639]
[1750457946727,24.80203098,2407.6,2407.5,4.15368639]
[1750457947153,24.80199118,2407.6,2407.5,4.15368639]
[1750457947856,24.80202577,2407.6,2407.5,4.15368639]
[1750457948329,24.41724288,2407.6,2407.5,4.15368639]
[1750457948528,24.80198235,2407.6,2407.5,4.15368639]
[1750457948870,24.80200855,2407.6,2407.5,4.15368639]
[1750457949056,21.30099712,2407.6,2407.5,4.15368639]
[1750457949265,14.70137557,2407.6,2407.5,4.15368639]
[1750457949765,14.70137844,2407.6,2407.5,4.15368639]
[1750457949976,14.08573009,2407.6,2407.5,4.15368639]
[1750457950169,14.70138275,2407.6,2407.5,4.15368639]
[1750457950661,14.70136462,2407.6,2407.5,4.15368639]
[1750457951982,14.70131461,2407.6,2407.5,4.15368639]
[1750457952273,14.31656568,2407.6,2407.5,4.15368639]
[1750457952455,14.70131234,2407.6,2407.5,4.15368639]
[1750457952771,14.70131044,2407.6,2407.5,4.15368639]
[1750457952973,14.47044069,2407.6,2407.5,4.15368639]
[1750457953175,17.17887415,2407.6,2407.5,4.15368639]
[1750457953960,17.17886055,2407.6,2407.5,4.15368639]
[1750457954164,14.47040883,2407.6,2407.5,4.15368639]
[1750457954359,7.50540883,2407.6,2407.5,4.15368639]
[1750457954675,15.9466754,2407.6,2407.5,4.15368639]
[1750457954863,16.33134035,2407.6,2407.5,4.15368639]
[1750457955069,15.94664167,2407.6,2407.5,4.15368639]
[1750457955372,16.3313194,2407.6,2407.5,4.15368639]
[1750457956469,16.56203575,2407.6,2407.5,4.15368639]
[1750457956886,16.56175964,2407.6,2407.5,4.15368639]
[1750457957262,0.55,2407.5,2406.9,0.8194]
[1750457957477,6.674047,2407.0,2406.9,4.15472184]
[1750457957761,25.88236373,2407.0,2406.9,4.15472184]
[1750457957974,26.49706094,2407.0,2406.9,4.15472184]
[1750457958284,26.4970593,2407.0,2406.9,4.15472184]
[1750457958676,26.55815808,2407.0,2406.9,4.15472184]
[1750457959081,26.55811343,2407.0,2406.9,4.15472184]
[1750457959389,26.55803035,2407.0,2406.9,4.15472184]
[1750457959573,26.1739297,2407.0,2406.9,4.15472184]
[1750457959778,26.5580069,2407.0,2406.9,4.15472184]
[1750457960287,26.55775691,2407.0,2406.9,4.15472184]
[1750457960490,26.5577493,2407.0,2406.9,4.15472184]
[1750457960690,26.32728333,2407.0,2406.9,4.15472184]
[1750457960889,29.71982132,2407.0,2406.9,4.15472184]
[1750457961068,30.7497395,2407.0,2406.9,4.15472184]
[1750457961798,30.7497395,2407.0,2406.2,4.21311491]
[1750457961799,10.0611,2406.7,2406.6,4.15516768]
[1750457961961,32.8607333,2406.7,2406.6,4.15516768]
[1750457962161,33.36340669,2406.7,2406.6,4.15516768]
[1750457962705,0.55,2406.6,2406.4,4.1554575]
[1750457962863,6.674047,2406.4,2406.3,4.1557578]
[1750457963192,14.46040132,2406.4,2406.3,4.1557578]
[1750457963382,14.45991081,2406.4,2406.3,4.1557578]
[1750457963587,14.39881081,2406.4,2406.3,4.1557578]
[1750457964000,14.39874861,2406.4,2406.3,4.1557578]
[1750457964379,13.632047,2406.4,2406.3,4.1557578]
[1750457965216,14.04848154,2406.4,2406.3,4.1557578]
[1750457965814,13.632047,2406.4,2406.3,4.1557578]
[1750457966012,14.470547,2406.4,2406.3,4.1557578]
[1750457966214,13.632047,2406.4,2406.3,4.1557578]
[1750457967611,23.693147,2406.4,2406.3,4.1557578]
[1750457967975,24.11158435,2406.4,2406.3,4.1557578]
[1750457969006,24.05048435,2406.4,2406.3,4.1557578]
[1750457970110,24.11158435,2406.4,2406.3,4.1557578]
[1750457971632,16.735147,2406.3,2406.2,4.15583611]
[1750457972010,16.674047,2406.3,2406.2,4.15583611]
[1750457974021,16.674047,2406.3,2406.0,4.15624146]
[1750457974022,16.674047,2406.1,2406.0,4.15624146]
[1750457974221,23.631047,2406.1,2406.0,4.15624146]
[1750457974403,6.674047,2406.0,2405.9,4.15644873]
[1750457974609,8.534047,2406.0,2405.9,4.15644873]
[1750457975127,16.735347,2405.8,2405.7,4.15679428]
[1750457975297,31.29139712,2405.8,2405.6,4.15690176]
[1750457975497,6.735347,2405.7,2405.6,4.15690176]
[1750457976222,0.0613,2405.5,2405.4,4.15730903]
[1750457976429,23.09009712,2405.5,2405.4,4.15730903]
[1750457976616,25.551347,2405.5,2405.4,4.15730903]
[1750457976822,6.674047,2405.4,2405.3,4.15738947]
[1750457977016,16.735347,2405.4,2405.3,4.15738947]
[1750457977417,10.0,2405.3,2405.2,4.16259328]
[1750457977621,62.55389712,2405.3,2405.2,0.005]
[1750457977917,62.55389712,2405.3,2405.2,4.1626584]
[1750457977918,34.47519712,2405.3,2405.2,4.1626584]
[1750457978332,34.85666786,2405.3,2405.2,4.1626584]
[1750457978496,34.85666786,2405.3,2405.2,0.005]
[1750457978702,38.7238131,2405.3,2405.2,0.005]
[1750457978901,68.72346931,2405.3,2405.2,0.005]
[1750457979103,82.86195793,2405.3,2405.2,0.005]
[1750457979299,82.86195793,2405.3,2404.5,0.2208927]
[1750457979300,10.55,2404.6,2404.5,0.2208927]
[1750457979539,7.224047,2404.6,2404.5,4.37976148]
[1750457979702,6.674047,2404.8,2404.7,4.15852289]
[1750457979900,6.674047,2404.8,2404.7,4.21962289]
[1750457980103,18.95647671,2405.2,2405.0,4.15795227]
[1750457980298,23.630047,2405.1,2405.0,4.15795227]
[1750457980638,23.691347,2405.1,2404.9,4.15806884]
[1750457980813,23.691347,2405.1,2404.7,0.7519]
[1750457980814,6.674047,2404.8,2404.7,4.15852289]
[1750457981013,13.629047,2404.8,2404.7,4.15852289]
[1750457981211,13.629047,2404.8,2404.5,0.2208927]
[1750457981212,6.674047,2404.7,2404.5,0.2208927]
[1750457981528,16.674047,2404.7,2404.6,4.15859635]
[1750457981724,31.84039712,2404.7,2404.5,4.37975159]
[1750457981927,21.78038671,2404.6,2404.5,0.2208927]
[1750457982139,21.78038671,2404.6,2404.5,4.37976148]
[1750457983213,21.78038671,2404.6,2404.5,0.2208927]
[1750457983214,19.90872082,2404.6,2404.5,0.2208927]
[1750457983448,19.52753391,2404.6,2404.5,0.2208927]
[1750457983616,19.90871809,2404.6,2404.5,0.2208927]
[1750457983811,49.90871809,2404.6,2404.5,0.2208927]
[1750457984148,49.146347,2404.6,2404.5,0.2208927]
[1750457984327,54.07265942,2404.6,2404.5,0.2208927]
[1750457984865,16.674047,2403.9,2403.8,4.16007987]
[1750457985010,25.553347,2403.9,2403.8,4.16007987]
[1750457985216,25.492047,2403.9,2403.8,4.16007987]
[1750457985765,25.492047,2403.9,2403.1,0.7643]
[1750457985766,10.55,2403.8,2403.1,0.7643]
[1750457985928,10.55,2403.8,2402.6,4.40721079]
[1750457985929,8.21135012,2403.2,2402.6,4.35720106]
[1750457986134,6.674047,2403.3,2402.9,4.16163802]
[1750457986445,2.51275534,2403.1,2403.0,4.16146483]
[1750457986644,2.51275534,2403.1,2402.9,4.16163802]
[1750457986645,12.51275534,2403.0,2402.9,4.16163802]
[1750457986812,21.33975534,2403.0,2402.9,4.16163802]
[1750457987014,10.0,2402.9,2402.6,0.19507528]
[1750457987213,29.00110546,2403.0,2402.6,4.35717626]
[1750457987214,10.0,2402.7,2402.6,4.35717626]
[1750457987437,1.44253351,2403.2,2403.0,4.16146483]
[1750457987613,8.833,2403.1,2403.0,4.16146483]
[1750457987829,1.44253351,2403.2,2403.1,4.16129166]
[1750457988154,1.44253351,2403.2,2403.1,4.22239166]
[1750457988463,6.978,2403.3,2403.2,4.1611185]
[1750457988666,10.0,2403.7,2403.6,4.16042602]
[1750457988956,9.39,2403.7,2403.6,4.16042602]
[1750457989163,8.84,2403.7,2403.6,4.16042602]
[1750457989327,8.84,2403.7,2403.1,0.0611]
[1750457989528,21.2497881,2403.9,2403.8,4.16007987]
[1750457989744,31.3958318,2403.9,2403.8,4.16007987]
[1750457989920,21.3958318,2403.9,2403.1,0.0611]
[1750457990112,10.0,2403.8,2403.7,4.16017041]
[1750457990345,10.37902621,2403.8,2403.7,4.16017041]
[1750457990517,18.836,2403.8,2403.7,4.16017041]
[1750457991145,20.21507894,2403.8,2403.7,4.16017041]
[1750457991362,24.44035645,2403.8,2403.7,4.16017041]
[1750457991725,15.22527743,2403.8,2403.7,4.16017041]
[1750457992046,24.61227743,2403.8,2403.7,4.11017041]
[1750457992854,24.00097743,2403.8,2403.7,4.11017041]
[1750457993061,19.837,2403.8,2403.7,4.11017041]
[1750457993559,9.833,2403.8,2403.7,4.11017041]
[1750457994263,1.0,2403.8,2403.7,4.11017041]
[1750457994463,17.967,2403.8,2403.7,4.11017041]
[1750457994768,17.967,2403.8,2403.7,4.17127041]
[1750457994975,1.0,2403.8,2403.7,4.17127041]
[1750457995135,11.0,2403.8,2403.7,4.17127041]
[1750457995328,6.965,2403.8,2403.7,4.17127041]
[1750457996264,19.984,2403.9,2403.8,4.22117987]
[1750457996442,26.948,2403.9,2403.8,4.22117987]
[1750457997372,26.948,2403.9,2403.8,4.16007987]
[1750457998138,26.948,2403.9,2403.8,4.11007987]
[1750457999882,16.948,2403.9,2403.8,4.11007987]
[1750458000082,16.948,2403.9,2403.8,4.17117987]
[1750458000387,1.8995421,2404.3,2404.2,4.15938773]
[1750458000683,0.6113,2404.2,2404.0,4.15964441]
[1750458000882,7.40106567,2404.1,2404.0,4.15964441]
[1750458001292,7.40106567,2404.1,2403.8,4.16000793]
[1750458001293,0.55,2404.0,2403.8,4.15996424]
[1750458001505,7.40306567,2403.9,2403.8,4.15996424]
[1750458001992,0.37876567,2403.9,2403.8,4.15996424]
[1750458002170,9.20299274,2403.9,2403.8,4.15996424]
[1750458002683,9.20199274,2403.9,2403.8,4.15996424]
[1750458002883,0.37899274,2403.9,2403.8,4.15996424]
[1750458003192,1.862,2404.0,2403.9,4.15987078]
[1750458003390,1.8995421,2404.3,2404.2,4.15938773]
[1750458003693,2.10816994,2404.3,2404.2,4.15938773]
[1750458003894,8.68985602,2404.3,2404.2,4.21998773]
[1750458004198,9.99,2404.8,2404.7,4.15852289]
[1750458004399,10.97728071,2404.8,2404.7,4.15852289]
[1750458004606,19.80049348,2404.8,2404.7,4.15852289]
[1750458004809,19.57243097,2404.8,2404.7,4.15852289]
[1750458005500,19.57243097,2404.8,2404.7,4.92952289]
[1750458005501,19.57282416,2404.8,2404.7,4.92952289]
[1750458005812,12.61263254,2404.8,2404.7,4.92952289]
[1750458005976,19.57363814,2404.8,2404.7,4.92952289]
[1750458006163,19.57363814,2404.8,2404.7,4.15852289]
[1750458006570,19.57396298,2404.8,2404.7,4.15852289]
[1750458006807,29.57396298,2404.8,2404.7,4.15852289]
[1750458007112,29.5748014,2404.8,2404.7,4.15852289]
[1750458007409,29.5748146,2404.8,2404.7,4.15852289]
[1750458007713,29.80431056,2404.8,2404.7,4.15852289]
[1750458007873,29.80431031,2404.8,2404.7,4.15852289]
[1750458008286,20.98130741,2404.8,2404.7,4.15852289]
[1750458008488,27.71354343,2404.8,2404.7,4.21912289]
[1750458008712,10.75254343,2404.8,2404.7,4.21912289]
[1750458008916,0.762879,2404.8,2404.7,5.8776011]
[1750458009080,1.861,2405.3,2405.2,4.1576584]
[1750458009422,19.5839643,2405.3,2405.2,4.1576584]
[1750458009623,0.7629643,2405.3,2405.2,5.08053184]
[1750458009920,1.861,2406.0,2405.9,4.15644873]
[1750458010136,12.62271668,2406.0,2405.9,4.15644873]
[1750458010282,19.58371668,2406.0,2405.9,4.15644873]
[1750458010618,19.58371968,2406.0,2405.9,4.15644873]
[1750458010816,9.58371968,2406.0,2405.9,4.15644873]
[1750458011017,7.72171968,2406.0,2405.9,4.15644873]
[1750458011221,0.76172808,2406.0,2405.9,4.15644873]
[1750458011431,7.72172808,2406.0,2405.9,4.15644873]
[1750458011615,7.72172808,2406.0,2405.9,4.21704873]
[1750458011823,7.72172808,2406.0,2405.9,5.49156169]
[1750458011824,0.38086135,2406.0,2405.9,5.49156169]
[1750458011997,6.959,2406.4,2406.3,4.1557578]
[1750458012320,17.72185061,2406.4,2406.3,4.1557578]
[1750458012635,0.7618196,2406.4,2406.3,4.1557578]
[1750458012830,9.20190658,2406.4,2406.3,4.1557578]
[1750458013031,10.0,2406.3,2406.0,4.15627597]
[1750458013221,7.39950658,2406.2,2406.1,4.15610323]
[1750458013428,7.39854829,2406.2,2406.1,4.15610323]
[1750458013602,7.33894215,2406.2,2406.1,4.15610323]
[1750458014528,7.34394215,2406.2,2406.1,4.15610323]
[1750458014850,6.964,2406.2,2406.1,4.15610323]
[1750458015018,9.14588784,2406.2,2406.1,4.15610323]
[1750458015750,2.12228784,2406.2,2406.1,4.15610323]
[1750458015939,8.823,2406.2,2406.1,4.15610323]
[1750458016337,2.01793629,2406.4,2406.2,4.15593051]
[1750458016520,8.822,2406.3,2406.2,4.15593051]
[1750458018860,0.21707617,2406.8,2406.1,4.15610323]
[1750458019056,19.19731778,2406.7,2406.6,4.15520428]
[1750458019356,19.19732209,2406.7,2406.6,4.15520428]
[1750458019921,10.37932209,2406.7,2406.6,4.15520428]
[1750458020136,2.20247325,2406.8,2406.7,4.1550671]
[1750458020341,1.86,2406.8,2406.7,4.1550671]
[1750458020667,10.0,2407.1,2407.0,4.15454923]
[1750458020842,22.01676047,2407.1,2407.0,4.15454923]
[1750458021048,3.20076047,2407.1,2407.0,4.15454923]
[1750458021223,12.01676047,2407.1,2407.0,4.15454923]
[1750458021423,5.06076047,2407.1,2407.0,4.15454923]
[1750458021623,8.816,2407.1,2407.0,4.15454923]
[1750458022455,8.8756,2407.1,2407.0,4.15454923]
[1750458024154,8.816,2407.1,2407.0,4.15454923]
[1750458024373,10.55,2407.2,2407.1,4.15437663]
[1750458024581,19.4246,2407.2,2407.1,4.15437663]
[1750458024759,9.987,2407.3,2407.1,4.15437663]
[1750458025089,20.0466,2407.3,2407.2,4.15420405]
[1750458025298,11.9066,2407.3,2407.2,4.15420405]
[1750458025477,18.8616,2407.3,2407.2,4.15420405]
[1750458025796,28.8616,2407.3,2407.2,4.15420405]
[1750458027694,28.802,2407.3,2407.2,4.15420405]
[1750458028499,32.84550563,2407.3,2407.2,4.15420405]
[1750458029016,10.0,2406.9,2406.7,4.15495278]
[1750458029224,18.8706,2406.8,2406.7,4.15495278]
[1750458031717,18.811,2406.8,2406.7,4.15495278]
[1750458032212,20.808,2406.8,2406.7,4.15495278]
[1750458032616,21.18818027,2406.8,2406.7,4.15495278]
[1750458032781,21.18818026,2406.8,2406.7,4.15495278]
[1750458033182,21.18818706,2406.8,2406.7,4.15495278]
[1750458033377,21.1881864,2406.8,2406.7,4.15495278]
[1750458033996,21.56847787,2406.8,2406.7,4.15495278]
[1750458034404,21.56858054,2406.8,2406.7,4.15495278]
[1750458034809,19.57158054,2406.8,2406.7,4.15495278]
[1750458035013,19.57260143,2406.8,2406.7,4.15495278]
[1750458035319,19.57260733,2406.8,2406.7,4.15495278]
[1750458035521,0.0609,2406.6,2406.2,4.15592894]
[1750458035698,12.65912125,2406.6,2406.5,4.15531518]
[1750458035897,19.99302453,2406.6,2406.5,4.15531518]
[1750458036501,20.22194508,2406.6,2406.5,4.15531518]
[1750458036927,20.22194508,2406.6,2406.1,0.7592]
[1750458037126,10.0609,2406.4,2406.3,4.1557578]
[1750458037302,17.62372383,2406.4,2406.3,4.1557578]
[1750458038324,17.56282383,2406.4,2406.3,4.1557578]
[1750458038528,17.56370147,2406.4,2406.3,4.1557578]
[1750458038730,17.62460147,2406.4,2406.3,4.1557578]
[1750458039133,0.61070147,2406.4,2406.3,4.1557578]
[1750458039431,0.61070147,2406.4,2406.3,5.12374232]
[1750458039631,0.60991821,2406.4,2406.3,5.12374232]
[1750458041334,0.60991821,2406.4,2406.3,4.2166578]
[1750458042742,6.953,2406.6,2406.5,4.15541242]
[1750458042934,7.566107,2406.6,2406.5,4.15541242]
[1750458043641,0.38319188,2406.6,2406.5,4.98971242]
[1750458043855,0.38319188,2406.6,2406.5,6.31981364]
[1750458044422,6.953,2407.0,2406.9,4.15472184]
[1750458044622,17.56630744,2407.0,2406.9,4.15472184]
[1750458045852,17.56630277,2407.0,2406.9,4.15472184]
[1750458046764,17.62718852,2407.0,2406.9,4.15472184]
[1750458046917,18.01048765,2407.0,2406.9,4.15472184]
[1750458047421,17.56628468,2407.0,2406.9,4.15472184]
[1750458047637,17.94974306,2407.0,2406.9,4.15472184]
[1750458048160,17.94997414,2407.0,2406.9,4.15472184]
[1750458048631,17.95005571,2407.0,2406.9,4.15472184]
[1750458048838,18.01095571,2407.0,2406.9,4.15472184]
[1750458049023,18.01095468,2407.0,2406.9,4.15472184]
[1750458049363,18.01095583,2407.0,2406.9,4.15472184]
[1750458049664,20.627097,2407.0,2406.9,4.15472184]
[1750458050161,20.62708875,2407.0,2406.9,4.15472184]
[1750458050363,0.55,2406.7,2406.1,0.7692]
[1750458050529,11.67199,2406.7,2406.6,4.15515305]
[1750458050723,21.47793429,2406.7,2406.6,4.15515305]
[1750458050930,21.47792475,2406.7,2406.6,4.15515305]
[1750458051266,22.23568774,2406.7,2406.6,4.15515305]
[1750458051467,0.55,2406.5,2405.9,0.7692]
[1750458051653,0.55,2406.3,2406.1,4.15597087]
[1750458051862,31.39319261,2406.2,2406.1,4.15597087]
[1750458052429,31.39301242,2406.2,2406.1,4.15597087]
[1750458052967,31.39299759,2406.2,2406.1,4.15597087]
[1750458053262,17.94764127,2406.2,2406.1,4.15597087]
[1750458053463,18.00826333,2406.2,2406.1,4.15597087]
[1750458053965,18.00780907,2406.2,2406.1,4.15597087]
[1750458054340,18.00767974,2406.2,2406.1,4.15597087]
[1750458054545,18.0076052,2406.2,2406.1,4.15597087]
[1750458054971,18.00745657,2406.2,2406.1,4.15597087]
[1750458055287,18.00736531,2406.2,2406.1,4.15597087]
[1750458056967,17.56358135,2406.2,2406.1,4.15597087]
[1750458057137,17.946263,2406.2,2406.1,4.15597087]
[1750458057836,17.9459888,2406.2,2406.1,4.15597087]
[1750458058170,17.94569435,2406.2,2406.1,4.15597087]
[1750458058667,18.00659498,2406.2,2406.1,4.15597087]
[1750458059077,18.00645323,2406.2,2406.1,4.15597087]
[1750458059486,18.0063697,2406.2,2406.1,4.15597087]
[1750458060282,17.24136132,2406.2,2406.1,4.15597087]
[1750458060485,18.00618441,2406.2,2406.1,4.15597087]
[1750458060990,17.6237078,2406.2,2406.1,4.15597087]
[1750458061148,17.39427988,2406.2,2406.1,4.15597087]
[1750458061483,17.62368226,2406.2,2406.1,4.15597087]
[1750458061698,17.39427988,2406.2,2406.1,4.15597087]
[1750458062106,17.62367934,2406.2,2406.1,4.15597087]
[1750458062311,17.39427988,2406.2,2406.1,4.15597087]
[1750458062495,17.39423816,2406.2,2406.1,4.15597087]
[1750458062672,17.3942732,2406.2,2406.1,4.15597087]
[1750458063196,17.3333732,2406.2,2406.1,4.15597087]
[1750458063509,16.951,2406.2,2406.1,4.15597087]
[1750458063811,17.33343457,2406.2,2406.1,4.15597087]
[1750458064104,0.0588,2406.0,2405.6,0.7692]
[1750458064311,2.05110246,2406.0,2405.9,4.15637709]
[1750458064500,9.38541205,2406.0,2405.9,4.15637709]
[1750458066307,8.7736427,2406.0,2405.9,4.15637709]
[1750458066607,9.38477119,2406.0,2405.9,4.15637709]
[1750458066811,9.38472418,2406.0,2405.9,4.15637709]